fUST/lending_fUST_20240223
["ID","MTS","AMOUNT","RATE_DAILY","PERIOD"]
[314906147,1708629032484,-500.0,0.00019178,2]
[314906154,1708629032587,-500.0,0.00019178,2]
[314906155,1708629032640,-7915.31,0.00019178,2]
[314906156,1708629032650,-500.0,0.00019178,2]
[314906157,1708629032659,-500.0,0.00019178,2]
[314906158,1708629032668,-1847.96032052,0.00019178,2]
[314906177,1708629037894,-190.98684713,0.00017269,2]
[314906178,1708629037903,-10972.89967948,0.00019178,2]
[314906179,1708629037912,-500.0,0.00019178,2]
[314906180,1708629037922,-1703.73,0.00019178,2]
[314906181,1708629037931,-500.0,0.00019178,2]
[314906182,1708629037942,-1832.15,0.00019178,2]
[314906183,1708629037954,-500.0,0.00019178,2]
[314906184,1708629037964,-500.0,0.00019178,2]
[314906185,1708629037973,-500.0,0.00019178,2]
[314906186,1708629037982,-1507.92,0.00019178,2]
[314906187,1708629037991,-500.0,0.00019178,2]
[314906188,1708629038001,-1515.29,0.00019178,2]
[314906189,1708629038010,-500.0,0.00019178,2]
[314906190,1708629038020,-500.0,0.00019178,2]
[314906191,1708629038031,-500.0,0.00019178,2]
[314906192,1708629038041,-500.0,0.00019178,2]
[314906193,1708629038050,-500.0,0.00019178,2]
[314906194,1708629038059,-2619.4,0.00019178,2]
[314906195,1708629038068,-2852.99,0.00019178,2]
[314906196,1708629038077,-868.0,0.00019178,2]
[314906197,1708629038086,-151.0,0.00019178,2]
[314906198,1708629038096,-151.0,0.00019178,2]
[314906199,1708629038105,-151.0,0.00019178,2]
[314906200,1708629038115,-151.0,0.00019178,2]
[314906201,1708629038123,-151.0,0.00019178,2]
[314906202,1708629038133,-151.0,0.00019178,2]
[314906203,1708629038142,-767.8,0.00019178,2]
[314906204,1708629038151,-500.0,0.00019178,2]
[314906205,1708629038160,-500.0,0.00019178,2]
[314906206,1708629038170,-3176.35,0.00019178,2]
[314906207,1708629038178,-636.735339,0.00019178,2]
[314906208,1708629038187,-636.735339,0.00019178,2]
[314906209,1708629038196,-636.735339,0.00019178,2]
[314906210,1708629038205,-636.735339,0.00019178,2]
[314906211,1708629038215,-636.735339,0.00019178,2]
[314906212,1708629038224,-636.735339,0.00019178,2]
[314906213,1708629038234,-500.0,0.00019178,2]
[314906214,1708629038243,-543.68572627,0.00019178,2]
[314906215,1708629038252,-944.2,0.00019178,2]
[314906216,1708629038262,-2258.81,0.00019178,2]
[314906217,1708629038271,-197.52562454,0.00019178,2]
[314906218,1708629038281,-890.42,0.00019178,2]
[314906219,1708629038290,-1024.89,0.00019178,2]
[314906220,1708629038299,-173.922206,0.00019178,2]
[314906221,1708629038308,-166.666666,0.00019178,2]
[314906222,1708629038317,-169.351097,0.00019178,2]
[314906223,1708629038328,-620.92880308,0.00019274,2]
[314906224,1708629038337,-300.0,0.00019363,2]
[314906225,1708629038346,-18680.01496563,0.00019442,3]
[314906226,1708629038358,-2214.95503437,0.00019442,3]
[314906227,1708629038367,-500.0,0.00019449,2]
[314906228,1708629038376,-500.0,0.00019449,2]
[314906229,1708629038385,-500.0,0.00019449,2]
[314906230,1708629038394,-133.24966847,0.00019449,2]
[314906231,1708629038406,-366.75033153,0.00019449,2]
[314906232,1708629038415,-500.0,0.00019449,2]
[314906233,1708629038424,-500.0,0.00019449,2]
[314906234,1708629038433,-307.54732652,0.00019449,2]
[314906235,1708629038446,-192.45267348,0.00019449,2]
[314906236,1708629038455,-300.0,0.00019449,2]
[314906237,1708629038464,-500.0,0.00019449,2]
[314906238,1708629038474,-500.0,0.00019449,2]
[314906239,1708629038483,-500.0,0.00019449,2]
[314906240,1708629038492,-500.0,0.00019449,2]
[314906241,1708629038502,-503.94155805,0.00019449,2]
[314906242,1708629038511,-250.0,0.00019449,2]
[314906243,1708629038520,-281.28625655,0.0001945,2]
[314906244,1708629038530,-151.0,0.0001945,2]
[314906245,1708629038539,-151.0,0.0001945,2]
[314906246,1708629038548,-636.735339,0.0001945,2]
[314906247,1708629038557,-480.39621509,0.0001945,2]
[314906254,1708629041194,-190.98684713,0.00017307,2]
[314906255,1708629041204,-156.33912391,0.0001945,2]
[314906256,1708629041214,-358.07116717,0.00019452,2]
[314906257,1708629041225,-163.65883283,0.00019452,2]
[314906258,1708629041235,-500.0,0.00019452,2]
[314906259,1708629041244,-71.08807003,0.00019452,2]
[314906277,1708629042962,-428.91192997,0.00019452,2]
[314906278,1708629042972,-498.92320764,0.00019452,2]
[314906279,1708629042984,-78.14679236,0.00019452,2]
[314906280,1708629042994,-500.0,0.00019452,2]
[314906281,1708629043003,-500.0,0.00019452,2]
[314906282,1708629043013,-500.0,0.00019452,2]
[314906283,1708629043024,-500.0,0.00019452,2]
[314906284,1708629043034,-500.0,0.00019452,2]
[314906285,1708629043042,-500.0,0.00019452,2]
[314906286,1708629043052,-624.44,0.00019452,2]
[314906287,1708629043061,-785.97,0.00019452,2]
[314906288,1708629043071,-500.0,0.00019452,2]
[314906289,1708629043080,-2035.83,0.00019452,2]
[314906290,1708629043089,-1677.33784724,0.00019452,2]
[314906299,1708629045922,-399.92215276,0.00019452,2]
[314906300,1708629045931,-980.91,0.00019452,2]
[314906301,1708629045941,-500.0,0.00019452,2]
[314906302,1708629045953,-500.0,0.00019452,2]
[314906303,1708629045962,-836.12,0.00019452,2]
[314906304,1708629045972,-500.0,0.00019452,2]
[314906305,1708629045984,-500.0,0.00019452,2]
[314906306,1708629045995,-500.0,0.00019452,2]
[314906307,1708629046005,-500.0,0.00019452,2]
[314906308,1708629046014,-500.0,0.00019452,2]
[314906309,1708629046024,-500.0,0.00019452,2]
[314906310,1708629046034,-8497.06,0.00019452,2]
[314906311,1708629046043,-5223.59,0.00019452,2]
[314906313,1708629046053,-500.0,0.00019452,2]
[314906314,1708629046063,-2115.23,0.00019452,2]
[314906315,1708629046073,-4343.93880642,0.00019452,2]
[314906316,1708629046087,-4798.11119358,0.00019452,2]
[314906317,1708629046096,-2596.17,0.00019452,2]
[314906318,1708629046105,-600.12,0.00019452,2]
[314906319,1708629046117,-3840.7,0.00019452,2]
[314906320,1708629046128,-2238.09,0.00019452,2]
[314906321,1708629046139,-1094.3,0.00019452,2]
[314906322,1708629046148,-917.34,0.00019452,2]
[314906323,1708629046156,-500.0,0.00019452,2]
[314906324,1708629046165,-1251.72,0.00019452,2]
[314906325,1708629046175,-43.94937297,0.00019452,2]
[314906417,1708630232168,-250.0,0.00018081,2]
[314906418,1708630232177,-124.27970311,0.00018081,2]
[314906419,1708630232189,-5161.1,0.00018081,2]
[314906420,1708630232201,-16382.77998689,0.00018081,2]
[314906421,1708630232211,-168.54593647,0.000188,2]
[314906422,1708630232220,-291.89109533,0.000189,2]
[314906423,1708630232230,-14906.237399,0.00019008,2]
[314906424,1708630232239,-174.30810607,0.00019068,2]
[314906426,1708630232248,-9408.38703397,0.00019078,2]
[314906428,1708630232260,-3796.56683588,0.00019078,2]
[314906447,1708630239199,-22076.14683054,0.00019078,2]
[314906484,1708630241348,-6519.77089489,0.00019078,2]
[314906485,1708630241361,-154.64,0.00019168,3]
[314906486,1708630241372,-463.92,0.00019168,3]
[314906487,1708630241382,-500.0,0.00019178,2]
[314906488,1708630241393,-720.47,0.00019178,2]
[314906489,1708630241403,-500.0,0.00019178,2]
[314906490,1708630241413,-500.0,0.00019178,2]
[314906491,1708630241423,-766.44,0.00019178,2]
[314906492,1708630241432,-500.0,0.00019178,2]
[314906493,1708630241443,-500.0,0.00019178,2]
[314906494,1708630241452,-572.4,0.00019178,2]
[314906495,1708630241461,-617.0,0.00019178,2]
[314906496,1708630241471,-500.0,0.00019178,2]
[314906497,1708630241481,-500.0,0.00019178,2]
[314906498,1708630241491,-840.89,0.00019178,2]
[314906499,1708630241501,-1866.18,0.00019178,2]
[314906500,1708630241510,-899.17,0.00019178,2]
[314906501,1708630241520,-550.11,0.00019178,2]
[314906502,1708630241530,-500.0,0.00019178,2]
[314906503,1708630241539,-1904.16,0.00019178,2]
[314906504,1708630241549,-500.0,0.00019178,2]
[314906505,1708630241559,-362.80234835,0.00019178,2]
[314906506,1708630241569,-500.0,0.00019178,2]
[314906507,1708630241578,-500.0,0.00019178,2]
[314906508,1708630241588,-528.98,0.00019178,2]
[314906509,1708630241598,-500.0,0.00019178,2]
[314906510,1708630241608,-982.19,0.00019178,2]
[314906511,1708630241618,-500.0,0.00019178,2]
[314906512,1708630241628,-4788.29,0.00019178,2]
[314906513,1708630241638,-8380.21,0.00019178,2]
[314906514,1708630241649,-500.0,0.00019178,2]
[314906515,1708630241659,-874.15,0.00019178,2]
[314906516,1708630241669,-2051.59,0.00019178,2]
[314906517,1708630241679,-500.0,0.00019178,2]
[314906518,1708630241689,-3520.64,0.00019178,2]
[314906519,1708630241699,-502.548,0.00019178,2]
[314906520,1708630241709,-1938.96,0.00019178,2]
[314906521,1708630241719,-500.0,0.00019178,2]
[314906522,1708630241729,-1147.41,0.00019178,2]
[314906523,1708630241738,-500.0,0.00019178,2]
[314906524,1708630241748,-989.25352884,0.00019178,2]
[314906525,1708630241766,-1390.56647116,0.00019178,2]
[314906526,1708630241775,-1445.09,0.00019178,2]
[314906527,1708630241785,-333.43100489,0.00019178,2]
[314906528,1708630241797,-2176.82899511,0.00019178,2]
[314906529,1708630241807,-500.0,0.00019178,2]
[314906530,1708630241817,-257.39172165,0.00019178,2]
[314906531,1708630241827,-1003.1,0.00019178,2]
[314906532,1708630241836,-136.83126201,0.00019178,2]
[314906533,1708630241849,-7577.06873799,0.00019178,2]
[314906534,1708630241858,-500.0,0.00019178,2]
[314906535,1708630241868,-281.54531068,0.00019178,2]
[314906559,1708630243051,-218.45468932,0.00019178,2]
[314906560,1708630243061,-1755.81,0.00019178,2]
[314906561,1708630243071,-1881.48,0.00019178,2]
[314906563,1708630243081,-1337.65819716,0.00019178,2]
[314906594,1708630593391,625.91,0.000202,6]
[314906637,1708631296770,7584.82021687,0.00029,30]
[314906702,1708631438195,-207.70929,0.00017644,2]
[314906705,1708631438204,-792.29071,0.0001769,2]
[314906707,1708631438215,-1499.03049179,0.0001769,2]
[314906712,1708631438256,-6811.10990457,0.0001769,2]
[314906714,1708631438267,-482.03492484,0.0001769,2]
[314906716,1708631438277,-249.5002275,0.00017766,2]
[314906718,1708631438285,-1375.56063343,0.00017835,2]
[314906720,1708631438297,-2834.94703737,0.00017835,2]
[314906722,1708631438306,-925.81939302,0.0001807,2]
[314906724,1708631438315,-2317.18828686,0.00018071,2]
[314906843,1708631444700,-1426.29959067,0.00018071,2]
[314906845,1708631444758,-6074.27679317,0.00018071,2]
[314906846,1708631444768,-194.59406356,0.000189,2]
[314906847,1708631444777,-182.68877867,0.00019078,2]
[314906848,1708631444787,-309.28,0.00019168,3]
[314906849,1708631444796,-227.35137604,0.00019177,2]
[314906850,1708631444806,-500.0,0.00019178,2]
[314906851,1708631444815,-500.0,0.00019178,2]
[314906852,1708631444825,-527.18,0.00019178,2]
[314906853,1708631444834,-805.85,0.00019178,2]
[314906854,1708631444844,-500.0,0.00019178,2]
[314906855,1708631444853,-500.0,0.00019178,2]
[314906856,1708631444862,-500.0,0.00019178,2]
[314906857,1708631444871,-500.0,0.00019178,2]
[314906858,1708631444881,-500.0,0.00019178,2]
[314906859,1708631444891,-548.55,0.00019178,2]
[314906860,1708631444900,-591.29,0.00019178,2]
[314906861,1708631444910,-1788.42,0.00019178,2]
[314906862,1708631444919,-506.94,0.00019178,2]
[314906863,1708631444928,-500.0,0.00019178,2]
[314906864,1708631444938,-861.71,0.00019178,2]
[314906865,1708631444947,-500.0,0.00019178,2]
[314906866,1708631444956,-229.10092995,0.00019178,2]
[314906867,1708631444966,-1824.82,0.00019178,2]
[314906868,1708631444975,-500.0,0.00019178,2]
[314906869,1708631444985,-500.0,0.00019178,2]
[314906870,1708631444994,-641.78533481,0.00019178,2]
[314906871,1708631445003,-500.0,0.00019178,2]
[314906872,1708631445013,-500.0,0.00019178,2]
[314906873,1708631445023,-690.45,0.00019178,2]
[314906874,1708631445033,-500.0,0.00019178,2]
[314906875,1708631445043,-500.0,0.00019178,2]
[314906876,1708631445052,-425.82836621,0.00019178,2]
[314906880,1708631448780,-410.64473468,0.00019178,2]
[314906953,1708632632508,-151.56668419,0.00018319,2]
[314906954,1708632632517,-182.68877865,0.00019078,2]
[314906955,1708632632526,-500.0,0.00019178,2]
[314906957,1708632632536,-500.0,0.00019178,2]
[314906959,1708632632545,-493.12982878,0.00019178,2]
[314906977,1708632638395,-6.87017122,0.00019178,2]
[314906978,1708632638405,-500.0,0.00019178,2]
[314906979,1708632638414,-500.0,0.00019178,2]
[314906980,1708632638424,-500.0,0.00019178,2]
[314906981,1708632638434,-500.0,0.00019178,2]
[314906982,1708632638443,-500.0,0.00019178,2]
[314906983,1708632638453,-500.0,0.00019178,2]
[314906984,1708632638462,-661.68,0.00019178,2]
[314906985,1708632638472,-500.0,0.00019178,2]
[314906986,1708632638482,-525.7,0.00019178,2]
[314906987,1708632638494,-566.65,0.00019178,2]
[314906988,1708632638503,-1713.9,0.00019178,2]
[314906989,1708632638512,-500.0,0.00019178,2]
[314906990,1708632638522,-500.0,0.00019178,2]
[314906991,1708632638532,-825.8,0.00019178,2]
[314906992,1708632638541,-1870.19,0.00019178,2]
[314906993,1708632638552,-500.0,0.00019178,2]
[314906994,1708632638562,-500.0,0.00019178,2]
[314906995,1708632638571,-500.0,0.00019178,2]
[314906996,1708632638579,-734.51,0.00019178,2]
[314906997,1708632638588,-500.0,0.00019178,2]
[314906998,1708632638596,-500.0,0.00019178,2]
[314906999,1708632638605,-500.0,0.00019178,2]
[314907000,1708632638615,-500.0,0.00019178,2]
[314907001,1708632638624,-500.0,0.00019178,2]
[314907002,1708632638634,-7844.53,0.00019178,2]
[314907003,1708632638643,-837.73,0.00019178,2]
[314907004,1708632638652,-3373.95,0.00019178,2]
[314907005,1708632638661,-500.0,0.00019178,2]
[314907006,1708632638671,-500.0,0.00019178,2]
[314907007,1708632638680,-234.72141157,0.00019178,2]
[314907008,1708632638690,-500.0,0.00019178,2]
[314907009,1708632638699,-500.0,0.00019178,2]
[314907010,1708632638708,-500.0,0.00019178,2]
[314907011,1708632638718,-1858.17,0.00019178,2]
[314907012,1708632638727,-4571.67,0.00019178,2]
[314907013,1708632638736,-1384.88,0.00019178,2]
[314907014,1708632638746,-1099.6,0.00019178,2]
[314907015,1708632638755,-772.28,0.00019178,2]
[314907016,1708632638764,-8031.04,0.00019178,2]
[314907017,1708632638774,-538.94,0.00019178,2]
[314907018,1708632638783,-500.0,0.00019178,2]
[314907019,1708632638792,-500.0,0.00019178,2]
[314907020,1708632638803,-2280.66,0.00019178,2]
[314907021,1708632638813,-1966.1,0.00019178,2]
[314907022,1708632638823,-1682.66,0.00019178,2]
[314907023,1708632638832,-961.31,0.00019178,2]
[314907024,1708632638841,-500.0,0.00019178,2]
[314907025,1708632638850,-5870.61152707,0.00019178,2]
[314907026,1708632638869,-6555.88847293,0.00019178,2]
[314907027,1708632638879,-1803.09,0.00019178,2]
[314907028,1708632638888,-317.56907617,0.00019178,2]
[314907029,1708632638897,-55.01191163,0.00019178,2]
[314907030,1708632638977,-1426.53353647,0.00019178,2]
[314907049,1708632644707,-2374.10701609,0.00019178,2]
[314907053,1708632645475,-529.68975891,0.00019178,2]
[314907060,1708632669345,500.0,0.00029,30]
[314907061,1708632669812,500.0,0.00029,30]
[314907062,1708632670270,471.25770243,0.00029,30]
[314907118,1708633834039,-155.00465014,0.00017981,2]
[314907120,1708633834049,-354.8234846,0.00017982,2]
[314907122,1708633834059,-620.06238835,0.00018264,2]
[314907124,1708633834069,-169.37820235,0.00018889,2]
[314907126,1708633834079,-192.15566592,0.000189,2]
[314907128,1708633834088,-7196.53815296,0.00018969,2]
[314907129,1708633834100,-355.05094011,0.00018969,2]
[314907154,1708633838607,-4446.22071116,0.00018969,2]
[314907277,1708633841854,-10215.01966173,0.00018969,2]
[314907278,1708633841928,-1824.61138021,0.00018969,2]
[314907279,1708633841944,-27663.84983952,0.00018969,2]
[314907290,1708633844465,-4197.06231117,0.00018969,2]
[314907337,1708633849996,-62160.18069054,0.00018969,2]
[314907338,1708633850005,-192.1556659,0.00018989,2]
[314907339,1708633850015,-1750.0,0.00019,2]
[314907340,1708633850024,-192.1556659,0.00019078,2]
[314907341,1708633850032,-300.0,0.0001913,2]
[314907342,1708633850042,-620.00311942,0.00019177,2]
[314907343,1708633850051,-500.0,0.00019178,2]
[314907344,1708633850060,-500.0,0.00019178,2]
[314907345,1708633850070,-366.74895436,0.00019178,2]
[314907346,1708633850079,-500.0,0.00019178,2]
[314907347,1708633850087,-500.0,0.00019178,2]
[314907348,1708633850099,-500.0,0.00019178,2]
[314907349,1708633850112,-500.0,0.00019178,2]
[314907350,1708633850121,-500.0,0.00019178,2]
[314907351,1708633850131,-500.0,0.00019178,2]
[314907352,1708633850140,-763.48,0.00019178,2]
[314907353,1708633850149,-500.0,0.00019178,2]
[314907354,1708633850160,-530.22,0.00019178,2]
[314907355,1708633850169,-187.08939607,0.00019178,2]
[314907356,1708633850178,-500.0,0.00019178,2]
[314907357,1708633850188,-500.0,0.00019178,2]
[314907358,1708633850197,-450.58788544,0.00019178,2]
[314907359,1708633850206,-500.0,0.00019178,2]
[314907360,1708633850215,-500.0,0.00019178,2]
[314907361,1708633850224,-581.87644808,0.00019178,2]
[314907362,1708633850233,-500.0,0.00019178,2]
[314907363,1708633850243,-500.0,0.00019178,2]
[314907364,1708633850252,-500.0,0.00019178,2]
[314907365,1708633850261,-500.0,0.00019178,2]
[314907366,1708633850269,-197.61156276,0.00019178,2]
[314907367,1708633850279,-500.0,0.00019178,2]
[314907368,1708633850288,-500.0,0.00019178,2]
[314907369,1708633850298,-500.0,0.00019178,2]
[314907370,1708633850307,-500.0,0.00019178,2]
[314907371,1708633850317,-500.0,0.00019178,2]
[314907372,1708633850328,-500.0,0.00019178,2]
[314907373,1708633850460,-500.0,0.00019178,2]
[314907374,1708633850470,-500.0,0.00019178,2]
[314907375,1708633850479,-500.0,0.00019178,2]
[314907376,1708633850490,-500.0,0.00019178,2]
[314907377,1708633850500,-500.0,0.00019178,2]
[314907378,1708633850510,-500.0,0.00019178,2]
[314907379,1708633850520,-500.0,0.00019178,2]
[314907380,1708633850529,-500.0,0.00019178,2]
[314907381,1708633850538,-152.76932582,0.00019178,2]
[314907382,1708633850548,-500.0,0.00019178,2]
[314907383,1708633850557,-500.0,0.00019178,2]
[314907384,1708633850565,-500.0,0.00019178,2]
[314907385,1708633850575,-500.0,0.00019178,2]
[314907386,1708633850585,-500.0,0.00019178,2]
[314907387,1708633850594,-500.0,0.00019178,2]
[314907388,1708633850603,-500.0,0.00019178,2]
[314907389,1708633850612,-500.0,0.00019178,2]
[314907390,1708633850621,-500.0,0.00019178,2]
[314907391,1708633850630,-500.0,0.00019178,2]
[314907392,1708633850640,-500.0,0.00019178,2]
[314907393,1708633850649,-500.0,0.00019178,2]
[314907394,1708633850661,-195.0,0.00019178,2]
[314907395,1708633850670,-500.0,0.00019178,2]
[314907396,1708633850679,-500.0,0.00019178,2]
[314907397,1708633850689,-500.0,0.00019178,2]
[314907398,1708633850698,-500.0,0.00019178,2]
[314907399,1708633850707,-500.0,0.00019178,2]
[314907400,1708633850717,-500.0,0.00019178,2]
[314907401,1708633850727,-500.0,0.00019178,2]
[314907402,1708633850736,-500.0,0.00019178,2]
[314907403,1708633850745,-500.0,0.00019178,2]
[314907404,1708633850754,-500.0,0.00019178,2]
[314907405,1708633850764,-282.94834833,0.00019178,2]
[314907406,1708633850773,-500.0,0.00019178,2]
[314907407,1708633850782,-500.0,0.00019178,2]
[314907408,1708633850792,-500.0,0.00019178,2]
[314907409,1708633850801,-500.0,0.00019178,2]
[314907410,1708633850810,-500.0,0.00019178,2]
[314907411,1708633850819,-500.0,0.00019178,2]
[314907412,1708633850828,-500.0,0.00019178,2]
[314907413,1708633850838,-500.0,0.00019178,2]
[314907414,1708633850847,-500.0,0.00019178,2]
[314907415,1708633850856,-500.0,0.00019178,2]
[314907416,1708633850865,-500.0,0.00019178,2]
[314907417,1708633850874,-500.0,0.00019178,2]
[314907418,1708633850883,-500.0,0.00019178,2]
[314907419,1708633850893,-500.0,0.00019178,2]
[314907420,1708633850902,-500.0,0.00019178,2]
[314907421,1708633850914,-500.0,0.00019178,2]
[314907422,1708633850924,-500.0,0.00019178,2]
[314907423,1708633850934,-500.0,0.00019178,2]
[314907424,1708633850943,-500.0,0.00019178,2]
[314907425,1708633850952,-500.0,0.00019178,2]
[314907426,1708633850962,-500.0,0.00019178,2]
[314907427,1708633850971,-500.0,0.00019178,2]
[314907428,1708633850980,-500.0,0.00019178,2]
[314907429,1708633850989,-500.0,0.00019178,2]
[314907430,1708633850998,-500.0,0.00019178,2]
[314907431,1708633851007,-500.0,0.00019178,2]
[314907432,1708633851016,-500.0,0.00019178,2]
[314907433,1708633851026,-500.0,0.00019178,2]
[314907434,1708633851035,-500.0,0.00019178,2]
[314907435,1708633851044,-500.0,0.00019178,2]
[314907436,1708633851054,-500.0,0.00019178,2]
[314907437,1708633851063,-500.0,0.00019178,2]
[314907438,1708633851073,-500.0,0.00019178,2]
[314907439,1708633851082,-500.0,0.00019178,2]
[314907440,1708633851091,-500.0,0.00019178,2]
[314907441,1708633851100,-500.0,0.00019178,2]
[314907442,1708633851109,-500.0,0.00019178,2]
[314907443,1708633851119,-500.0,0.00019178,2]
[314907444,1708633851128,-500.0,0.00019178,2]
[314907445,1708633851137,-500.0,0.00019178,2]
[314907446,1708633851147,-500.0,0.00019178,2]
[314907447,1708633851158,-500.0,0.00019178,2]
[314907448,1708633851167,-502.91361089,0.00019178,2]
[314907449,1708633851176,-500.0,0.00019178,2]
[314907450,1708633851186,-500.0,0.00019178,2]
[314907451,1708633851195,-500.0,0.00019178,2]
[314907452,1708633851204,-500.0,0.00019178,2]
[314907453,1708633851213,-500.0,0.00019178,2]
[314907454,1708633851223,-500.0,0.00019178,2]
[314907455,1708633851233,-500.0,0.00019178,2]
[314907456,1708633851243,-500.0,0.00019178,2]
[314907457,1708633851252,-500.0,0.00019178,2]
[314907458,1708633851262,-500.0,0.00019178,2]
[314907459,1708633851273,-500.0,0.00019178,2]
[314907460,1708633851283,-500.0,0.00019178,2]
[314907461,1708633851293,-500.0,0.00019178,2]
[314907462,1708633851304,-600.0,0.00019178,2]
[314907463,1708633851316,-500.0,0.00019178,2]
[314907464,1708633851327,-500.0,0.00019178,2]
[314907465,1708633851339,-500.0,0.00019178,2]
[314907466,1708633851349,-500.0,0.00019178,2]
[314907467,1708633851360,-500.0,0.00019178,2]
[314907468,1708633851370,-500.0,0.00019178,2]
[314907469,1708633851384,-500.0,0.00019178,2]
[314907470,1708633851395,-500.0,0.00019178,2]
[314907471,1708633851407,-500.0,0.00019178,2]
[314907472,1708633851422,-500.0,0.00019178,2]
[314907473,1708633851432,-500.0,0.00019178,2]
[314907474,1708633851446,-500.0,0.00019178,2]
[314907475,1708633851457,-500.0,0.00019178,2]
[314907476,1708633851468,-500.0,0.00019178,2]
[314907477,1708633851478,-500.0,0.00019178,2]
[314907478,1708633851489,-500.0,0.00019178,2]
[314907479,1708633851500,-500.0,0.00019178,2]
[314907480,1708633851511,-500.0,0.00019178,2]
[314907481,1708633851522,-551.87200447,0.00019178,2]
[314907482,1708633851531,-500.0,0.00019178,2]
[314907483,1708633851541,-500.0,0.00019178,2]
[314907484,1708633851551,-344.32983364,0.00019178,2]
[314907485,1708633851561,-500.0,0.00019178,2]
[314907486,1708633851571,-500.0,0.00019178,2]
[314907487,1708633851581,-500.0,0.00019178,2]
[314907488,1708633851590,-500.0,0.00019178,2]
[314907489,1708633851600,-580.7558931,0.00019178,2]
[314907490,1708633851610,-517.13899166,0.00019178,2]
[314907491,1708633851619,-500.0,0.00019178,2]
[314907492,1708633851629,-500.0,0.00019178,2]
[314907493,1708633851639,-500.0,0.00019178,2]
[314907494,1708633851648,-500.0,0.00019178,2]
[314907495,1708633851663,-500.0,0.00019178,2]
[314907496,1708633851673,-171.10570673,0.00019178,2]
[314907497,1708633851682,-500.0,0.00019178,2]
[314907498,1708633851692,-500.0,0.00019178,2]
[314907499,1708633851702,-500.0,0.00019178,2]
[314907500,1708633851711,-500.0,0.00019178,2]
[314907501,1708633851721,-500.0,0.00019178,2]
[314907502,1708633851730,-500.0,0.00019178,2]
[314907503,1708633851740,-500.0,0.00019178,2]
[314907504,1708633851749,-500.0,0.00019178,2]
[314907505,1708633851759,-500.0,0.00019178,2]
[314907506,1708633851768,-500.0,0.00019178,2]
[314907507,1708633851778,-500.0,0.00019178,2]
[314907508,1708633851787,-500.0,0.00019178,2]
[314907509,1708633851797,-500.0,0.00019178,2]
[314907510,1708633851807,-500.0,0.00019178,2]
[314907511,1708633851816,-500.0,0.00019178,2]
[314907512,1708633851827,-161.35188795,0.00019178,2]
[314907513,1708633851837,-500.0,0.00019178,2]
[314907514,1708633851846,-500.0,0.00019178,2]
[314907515,1708633851856,-500.0,0.00019178,2]
[314907516,1708633851865,-500.0,0.00019178,2]
[314907517,1708633851874,-500.0,0.00019178,2]
[314907518,1708633851883,-500.0,0.00019178,2]
[314907519,1708633851892,-500.0,0.00019178,2]
[314907520,1708633851901,-500.0,0.00019178,2]
[314907521,1708633851918,-337.44493754,0.00019178,2]
[314907522,1708633851927,-500.0,0.00019178,2]
[314907523,1708633851936,-500.0,0.00019178,2]
[314907524,1708633851945,-500.0,0.00019178,2]